[Event "Chess Stars Match"]
[Site "Teatro Capri, Paterna, Spain"]
[Date "2019.12.15"]
[Round "10.5"]
[White "Llobell Cortell, Enrique"]
[Black "Povshednyi, Ivan"]
[Result "1-0"]
[TimeControl "7m+3s"]
[WhiteTitle "IM"]
[WhiteFideId "2216116"]
[BlackFideId "14190907"]
[WhiteElo "2401"]
[BlackElo "1795"]

1. e4 {[%clk 00:04:04]} c5 {[%clk 00:06:00]} {[%emt 00:00:07]} 2. Nc3 {[%clk
00:04:03]} {[%emt 00:00:04]} e6 {[%clk 00:05:59]} {[%emt 00:00:05]} 3. Nf3
{[%clk 00:03:55]} {[%emt 00:00:10]} d6 {[%clk 00:05:58]} {[%emt 00:00:04]} 4.
d4 {[%clk 00:03:56]} {[%emt 00:00:02]} cxd4 {[%clk 00:06:01]} 5. Nxd4 {[%clk
00:03:58]} {[%emt 00:00:01]} Nf6 {[%clk 00:06:03]} 6. Be3 {[%clk 00:03:42]}
{[%emt 00:00:20]} a6 {[%clk 00:06:05]} {[%emt 00:00:02]} 7. Qd2 {[%clk
00:03:41]} {[%emt 00:00:04]} Be7 {[%clk 00:06:06]} {[%emt 00:00:02]} 8. f3
{[%clk 00:03:41]} {[%emt 00:00:02]} Qc7 {[%clk 00:06:06]} {[%emt 00:00:03]} 9.
O-O-O {[%clk 00:03:37]} {[%emt 00:00:07]} Nbd7 {[%clk 00:06:06]} {[%emt
00:00:03]} 10. g4 {[%clk 00:03:39]} {[%emt 00:00:01]} Ne5 {[%clk 00:06:05]}
{[%emt 00:00:04]} 11. g5 {[%clk 00:03:21]} {[%emt 00:00:20]} Nfd7 {[%clk
00:06:05]} {[%emt 00:00:03]} 12. f4 {[%clk 00:03:14]} {[%emt 00:00:10]} Nc4
{[%clk 00:06:03]} {[%emt 00:00:05]} 13. Bxc4 {[%clk 00:02:32]} {[%emt
00:00:46]} Qxc4 {[%clk 00:06:04]} {[%emt 00:00:02]} 14. f5 {[%clk 00:02:33]}
{[%emt 00:00:02]} Ne5 {[%clk 00:05:53]} {[%emt 00:00:14]} 15. Rhf1 {[%clk
00:02:30]} {[%emt 00:00:06]} Bd7 {[%clk 00:05:50]} {[%emt 00:00:06]} 16. Kb1
{[%clk 00:02:28]} {[%emt 00:00:04]} O-O-O {[%clk 00:05:46]} {[%emt 00:00:09]}
17. f6 {[%clk 00:02:16]} {[%emt 00:00:15]} Bf8 {[%clk 00:05:34]} {[%emt
00:00:14]} 18. Nb3 {[%clk 00:02:16]} {[%emt 00:00:03]} Qc7 {[%clk 00:05:33]}
{[%emt 00:00:04]} 19. Bf4 {[%clk 00:01:59]} {[%emt 00:00:21]} Bc6 {[%clk
00:05:21]} {[%emt 00:00:16]} 20. Bxe5 {[%clk 00:01:51]} {[%emt 00:00:11]} dxe5
{[%clk 00:05:23]} {[%emt 00:00:01]} 21. Qxd8+ {[%clk 00:01:53]} {[%emt
00:00:01]} Qxd8 {[%clk 00:05:23]} {[%emt 00:00:02]} 22. Rxd8+ {[%clk 00:01:55]}
Kxd8 {[%clk 00:05:25]} {[%emt 00:00:01]} 23. fxg7 {[%clk 00:01:58]} Bxg7 {[%clk
00:05:25]} {[%emt 00:00:03]} 24. Rxf7 {[%emt 00:00:02]} Rg8 {[%clk 00:05:14]}
{[%emt 00:00:13]} 25. Nc5 {[%clk 00:01:09]} {[%emt 00:00:54]} Ke8 {[%clk
00:05:00]} {[%emt 00:00:16]} 26. Rc7 {[%clk 00:01:10]} {[%emt 00:00:02]} Bf8
{[%clk 00:04:30]} {[%emt 00:00:33]} 27. Nxe6 {[%clk 00:01:08]} {[%emt
00:00:06]} Bd7 {[%clk 00:04:18]} {[%emt 00:00:16]} 28. Nxf8 {[%clk 00:01:09]}
{[%emt 00:00:02]} Rxf8 {[%clk 00:04:20]} 29. b4 {[%clk 00:00:58]} {[%emt
00:00:14]} Rf1+ {[%clk 00:04:20]} {[%emt 00:00:03]} 30. Kb2 {[%clk 00:00:59]}
{[%emt 00:00:02]} Rf2 {[%clk 00:04:12]} {[%emt 00:00:10]} 31. Nd5 {[%clk
00:00:56]} {[%emt 00:00:07]} Kd8 {[%clk 00:04:12]} {[%emt 00:00:04]} 32. Rxb7
{[%clk 00:00:54]} {[%emt 00:00:06]} Rxh2 {[%clk 00:04:08]} {[%emt 00:00:06]} 33.
Rb8+ {[%clk 00:00:34]} {[%emt 00:00:23]} Bc8 {[%clk 00:04:09]} {[%emt
00:00:02]} 34. Nb6 {[%clk 00:00:36]} Kc7 {[%clk 00:04:12]} 35. Rxc8+ {[%clk
00:00:38]} {[%emt 00:00:02]} Kxb6 {[%clk 00:04:13]} {[%emt 00:00:01]} 36. Re8
{[%clk 00:00:39]} {[%emt 00:00:01]} Rh5 {[%clk 00:04:04]} {[%emt 00:00:12]} 37.
Rxe5 {[%clk 00:00:41]} {[%emt 00:00:02]} Kb7 {[%clk 00:04:02]} {[%emt
00:00:05]} 38. a4 {[%clk 00:00:40]} {[%emt 00:00:05]} Kb6 {[%clk 00:04:04]}
{[%emt 00:00:01]} 39. a5+ {[%clk 00:00:41]} {[%emt 00:00:01]} Kb7 {[%clk
00:04:06]} {[%emt 00:00:01]} 40. Kb3 {[%clk 00:00:40]} {[%emt 00:00:04]} Kc7
{[%clk 00:04:01]} {[%emt 00:00:08]} 41. Kc4 {[%clk 00:00:39]} {[%emt 00:00:04]}
Kc6 {[%clk 00:04:02]} {[%emt 00:00:01]} 42. Re6+ {[%clk 00:00:28]} {[%emt
00:00:14]} Kb7 {[%clk 00:04:03]} {[%emt 00:00:01]} 43. Re7+ {[%clk 00:00:27]}
{[%emt 00:00:04]} Kc6 {[%clk 00:04:06]} 44. Rg7 {[%clk 00:00:29]} {[%emt
00:00:02]} Rh4 {[%clk 00:04:05]} {[%emt 00:00:04]} 45. Kd4 {[%clk 00:00:29]}
{[%emt 00:00:03]} Kb5 {[%clk 00:04:06]} {[%emt 00:00:02]} 46. Rb7+ {[%clk
00:00:30]} {[%emt 00:00:02]} Ka4 {[%clk 00:04:07]} {[%emt 00:00:02]} 47. c3
{[%clk 00:00:29]} {[%emt 00:00:03]} Rh5 {[%clk 00:04:08]} {[%emt 00:00:02]} 48.
Rg7 {[%clk 00:00:18]} {[%emt 00:00:15]} Kb3 {[%clk 00:04:04]} {[%emt 00:00:08]}
49. e5 {[%clk 00:00:14]} {[%emt 00:00:06]} Rh4+ {[%clk 00:04:05]} {[%emt
00:00:02]} 50. Kd5 {[%clk 00:00:13]} {[%emt 00:00:04]} Kxc3 {[%clk 00:04:06]}
{[%emt 00:00:01]} 51. e6 {[%clk 00:00:15]} Rd4+ {[%clk 00:04:04]} {[%emt
00:00:05]} 52. Kc5 {[%clk 00:00:13]} {[%emt 00:00:04]} Re4 {[%clk 00:04:06]}
{[%emt 00:00:01]} 53. Kd6 {[%clk 00:00:12]} {[%emt 00:00:03]} Kxb4 {[%clk
00:04:07]} {[%emt 00:00:02]} 54. Rxh7 {[%clk 00:00:12]} {[%emt 00:00:03]} Kxa5
{[%clk 00:04:07]} {[%emt 00:00:03]} 55. g6 {[%clk 00:00:13]} {[%emt 00:00:01]}
Rg4 {[%clk 00:04:09]} {[%emt 00:00:02]} 56. g7 {[%clk 00:00:14]} {[%emt
00:00:02]} Rg6 {[%clk 00:04:10]} {[%emt 00:00:02]} 57. Kd7 {[%clk 00:00:14]}
{[%emt 00:00:03]} Kb4 {[%clk 00:04:10]} {[%emt 00:00:01]} 58. e7 {[%clk
00:00:16]} {[%emt 00:00:03]} Rg1 {[%clk 00:04:08]} {[%emt 00:00:06]} 59. e8=Q
{[%clk 00:00:16]} {[%emt 00:00:03]} Rd1+ {[%clk 00:04:09]} {[%emt 00:00:02]} 60.
Kc6 {[%clk 00:00:17]} {[%emt 00:00:02]} Rc1+ {[%clk 00:04:09]} {[%emt
00:00:03]} 61. Kd5 {[%emt 00:00:09]} 1-0